fUST/lending_fUST_20240812
["ID","MTS","AMOUNT","RATE_DAILY","PERIOD"]
[334671572,1723455042734,-500.0,0.00020821,3]
[334671573,1723455042745,-500.0,0.00020821,3]
[334671574,1723455042754,-500.0,0.00020821,3]
[334671575,1723455042764,-527.4319581,0.00020821,3]
[334671576,1723455042774,-625.8659027,0.00020821,3]
[334671577,1723455042784,-511.03850065,0.00020821,3]
[334671578,1723455042797,-500.0,0.00020821,3]
[334671579,1723455042807,-500.0,0.00020821,3]
[334671580,1723455042817,-500.0,0.00020821,3]
[334671581,1723455042825,-504.74492696,0.00020821,3]
[334671582,1723455042834,-151.0,0.00020821,2]
[334671584,1723455042843,-151.0,0.00020821,2]
[334671585,1723455042852,-151.0,0.00020821,2]
[334671587,1723455042861,-505.35130249,0.00020821,3]
[334671589,1723455042870,-500.0,0.00020821,3]
[334671591,1723455042879,-500.0,0.00020821,2]
[334671593,1723455042890,-503.10663543,0.00020821,3]
[334671594,1723455042899,-503.23853271,0.00020821,3]
[334671596,1723455042908,-500.0,0.00020821,3]
[334671598,1723455042918,-500.0,0.00020821,3]
[334671599,1723455042928,-500.0,0.00020821,3]
[334671600,1723455042938,-505.58590369,0.00020821,3]
[334671602,1723455042947,-500.0,0.00020821,3]
[334671603,1723455042956,-500.0,0.00020821,3]
[334671605,1723455042968,-629.27268015,0.00020821,3]
[334671607,1723455042977,-370.638504,0.00020821,2]
[334671609,1723455042988,-370.638504,0.00020821,2]
[334671610,1723455042998,-370.638504,0.00020821,2]
[334671611,1723455043008,-370.638504,0.00020821,2]
[334671612,1723455043020,-370.638504,0.00020821,2]
[334671613,1723455043030,-370.638504,0.00020821,2]
[334671614,1723455043043,-500.0,0.00020821,3]
[334671616,1723455043053,-370.638504,0.00020821,2]
[334671617,1723455043062,-370.638504,0.00020821,2]
[334671618,1723455043071,-370.638504,0.00020821,2]
[334671619,1723455043079,-370.638504,0.00020821,2]
[334671620,1723455043089,-370.638504,0.00020821,2]
[334671621,1723455043098,-370.638504,0.00020821,2]
[334671622,1723455043108,-370.638504,0.00020821,2]
[334671623,1723455043118,-370.638504,0.00020821,2]
[334671624,1723455043266,-500.0,0.00020821,3]
[334671625,1723455043276,-370.638504,0.00020821,2]
[334671626,1723455043286,-370.638504,0.00020821,2]
[334671627,1723455043300,-370.638504,0.00020821,2]
[334671628,1723455043309,-370.638504,0.00020821,2]
[334671629,1723455043318,-500.0,0.00020821,3]
[334671630,1723455043327,-370.638504,0.00020821,2]
[334671631,1723455043336,-370.638494,0.00020821,2]
[334671632,1723455043346,-500.0,0.00020821,3]
[334671633,1723455043357,-500.0,0.00020821,3]
[334671634,1723455043367,-500.0,0.00020821,3]
[334671635,1723455043376,-500.0,0.00020821,3]
[334671636,1723455043387,-500.0,0.00020821,3]
[334671637,1723455043396,-737.74,0.00020821,3]
[334671638,1723455043406,-506.88527368,0.00020821,3]
[334671639,1723455043415,-500.0,0.00020821,3]
[334671640,1723455043424,-500.0,0.00020821,3]
[334671641,1723455043433,-502.05,0.00020821,3]
[334671642,1723455043443,-506.82338046,0.00020821,3]
[334671643,1723455043452,-500.0,0.00020821,3]
[334671644,1723455043463,-282.70644405,0.00020821,3]
[334671646,1723455043472,-500.0,0.00020821,3]
[334671648,1723455043482,-509.94940981,0.00020821,3]
[334671649,1723455043491,-500.0,0.00020821,3]
[334671650,1723455043501,-247.54467433,0.00020821,3]
[334671651,1723455043510,-501.49390567,0.00020821,3]
[334671652,1723455043519,-502.41031601,0.00020821,3]
[334671653,1723455043529,-500.0,0.00020821,3]
[334671654,1723455043538,-500.0,0.00020821,3]
[334671655,1723455043550,-500.0,0.00020821,3]
[334671656,1723455043559,-503.35240023,0.00020821,3]
[334671657,1723455043569,-500.0,0.00020821,3]
[334671659,1723455043581,-325.65215929,0.00020821,3]
[334671660,1723455043591,-948.14,0.00020821,3]
[334671662,1723455043600,-500.0,0.00020821,3]
[334671664,1723455043611,-500.0,0.00020821,3]
[334671666,1723455043622,-500.0,0.00020821,3]
[334671668,1723455043631,-500.0,0.00020821,3]
[334671669,1723455043641,-500.0,0.00020821,3]
[334671671,1723455043650,-776.7,0.00020821,3]
[334671672,1723455043660,-500.0,0.00020821,3]
[334671673,1723455043672,-528.49685715,0.00020821,3]
[334671674,1723455043682,-568.52,0.00020821,3]
[334671675,1723455043691,-500.0,0.00020821,3]
[334671676,1723455043701,-500.0,0.00020821,3]
[334671677,1723455043710,-500.0,0.00020821,3]
[334671678,1723455043719,-395.85058627,0.00020821,3]
[334671679,1723455043728,-500.0,0.00020821,3]
[334671680,1723455043738,-505.64252159,0.00020821,3]
[334671681,1723455043748,-500.0,0.00020821,3]
[334671682,1723455043757,-500.0,0.00020821,3]
[334671683,1723455043766,-500.0,0.00020821,3]
[334671684,1723455043776,-500.0,0.00020821,3]
[334671685,1723455043785,-500.0,0.00020821,3]
[334671686,1723455043797,-512.17168616,0.00020821,3]
[334671687,1723455043806,-504.51658871,0.00020821,3]
[334671688,1723455043815,-1262.68,0.00020821,3]
[334671689,1723455043824,-500.0,0.00020821,3]
[334671690,1723455043835,-509.53757874,0.00020821,3]
[334671691,1723455043844,-505.0,0.00020821,3]
[334671692,1723455043854,-500.0,0.00020821,3]
[334671693,1723455043864,-279.59967043,0.00020821,3]
[334671694,1723455043873,-505.06170648,0.00020821,3]
[334671695,1723455043883,-500.0,0.00020821,3]
[334671696,1723455043892,-506.51584812,0.00020821,3]
[334671697,1723455043902,-500.0,0.00020821,3]
[334671698,1723455043912,-509.21040246,0.00020821,3]
[334671699,1723455043921,-500.0,0.00020821,3]
[334671700,1723455043930,-505.37416633,0.00020821,3]
[334671701,1723455043940,-500.0,0.00020821,3]
[334671702,1723455043949,-501.14172296,0.00020821,3]
[334671703,1723455043959,-500.0,0.00020821,3]
[334671704,1723455043968,-500.0,0.00020821,3]
[334671705,1723455043977,-500.0,0.00020821,3]
[334671706,1723455043986,-500.0,0.00020821,3]
[334671707,1723455043996,-500.0,0.00020821,3]
[334671708,1723455044006,-500.0,0.00020821,3]
[334671709,1723455044015,-236.01547497,0.00020821,3]
[334671710,1723455044024,-153.898367,0.00020821,2]
[334671711,1723455044034,-500.0,0.00020821,3]
[334671712,1723455044045,-505.0683132,0.00020821,3]
[334671713,1723455044054,-500.0,0.00020821,3]
[334671714,1723455044064,-1071.03,0.00020821,3]
[334671715,1723455044073,-507.77632743,0.00020821,3]
[334671716,1723455044083,-500.0,0.00020821,3]
[334671717,1723455044094,-500.0,0.00020821,3]
[334671718,1723455044103,-509.72787759,0.00020821,3]
[334671719,1723455044113,-502.30956681,0.00020821,3]
[334671720,1723455044122,-500.0,0.00020821,3]
[334671721,1723455044132,-500.43605839,0.00020821,3]
[334671722,1723455044141,-500.0,0.00020821,3]
[334671723,1723455044152,-500.0,0.00020821,3]
[334671724,1723455044163,-500.0,0.00020821,3]
[334671725,1723455044173,-500.0,0.00020821,3]
[334671726,1723455044183,-512.50635264,0.00020821,3]
[334671727,1723455044192,-500.0,0.00020821,3]
[334671728,1723455044202,-500.0,0.00020821,3]
[334671729,1723455044212,-503.16228762,0.00020821,3]
[334671730,1723455044224,-500.0,0.00020821,3]
[334671731,1723455044234,-513.37383625,0.00020821,3]
[334671732,1723455044244,-151.0,0.00020821,2]
[334671733,1723455044253,-151.0,0.00020821,2]
[334671734,1723455044263,-151.0,0.00020821,2]
[334671735,1723455044273,-151.0,0.00020821,2]
[334671736,1723455044282,-500.0,0.00020821,3]
[334671737,1723455044292,-151.0,0.00020821,2]
[334671738,1723455044302,-151.0,0.00020821,2]
[334671739,1723455044313,-151.0,0.00020821,2]
[334671740,1723455044324,-151.0,0.00020821,2]
[334671741,1723455044333,-151.0,0.00020821,2]
[334671742,1723455044343,-151.0,0.00020821,2]
[334671743,1723455044353,-151.0,0.00020821,2]
[334671744,1723455044364,-151.0,0.00020821,2]
[334671745,1723455044373,-156.807315,0.00020821,2]
[334671746,1723455044382,-500.0,0.00020821,3]
[334671747,1723455044392,-500.0,0.00020821,3]
[334671748,1723455044402,-500.0,0.00020821,3]
[334671749,1723455044412,-500.0,0.00020821,3]
[334671750,1723455044422,-500.0,0.00020821,3]
[334671751,1723455044432,-272.150231,0.00020821,2]
[334671752,1723455044443,-500.0,0.00020821,3]
[334671753,1723455044454,-272.150231,0.00020821,2]
[334671754,1723455044465,-500.0,0.00020821,3]
[334671755,1723455044474,-500.0,0.00020821,3]
[334671756,1723455044484,-272.150231,0.00020821,2]
[334671757,1723455044493,-440.45964835,0.00020821,3]
[334671758,1723455044504,-272.150231,0.00020821,2]
[334671759,1723455044514,-500.0,0.00020821,3]
[334671760,1723455044523,-500.0,0.00020821,3]
[334671761,1723455044532,-272.150231,0.00020821,2]
[334671762,1723455044542,-272.150231,0.00020821,2]
[334671763,1723455044551,-272.150231,0.00020821,2]
[334671764,1723455044560,-272.150231,0.00020821,2]
[334671765,1723455044569,-500.0,0.00020821,3]
[334671766,1723455044579,-272.150231,0.00020821,2]
[334671767,1723455044591,-272.150231,0.00020821,2]
[334671768,1723455044600,-272.150231,0.00020821,2]
[334671769,1723455044610,-272.150231,0.00020821,2]
[334671770,1723455044619,-272.150231,0.00020821,2]
[334671771,1723455044629,-500.0,0.00020821,3]
[334671772,1723455044638,-272.150231,0.00020821,2]
[334671773,1723455044647,-272.150231,0.00020821,2]
[334671774,1723455044657,-272.150231,0.00020821,2]
[334671775,1723455044667,-272.150231,0.00020821,2]
[334671776,1723455044676,-272.150231,0.00020821,2]
[334671777,1723455044686,-885.22,0.00020821,3]
[334671778,1723455044696,-272.150231,0.00020821,2]
[334671779,1723455044705,-500.0,0.00020821,3]
[334671780,1723455044714,-272.15023825,0.00020821,2]
[334671781,1723455044723,-500.0,0.00020821,3]
[334671782,1723455044733,-500.0,0.00020821,3]
[334671783,1723455044742,-502.06461699,0.00020821,3]
[334671784,1723455044751,-500.0,0.00020821,3]
[334671785,1723455044761,-500.0,0.00020821,3]
[334671786,1723455044770,-151.72358,0.00020821,2]
[334671787,1723455044779,-500.0,0.00020821,3]
[334671788,1723455044791,-500.0,0.00020821,3]
[334671789,1723455044801,-500.0,0.00020821,3]
[334671790,1723455044810,-500.0,0.00020821,3]
[334671791,1723455044819,-500.0,0.00020821,3]
[334671792,1723455044829,-503.16277501,0.00020821,3]
[334671793,1723455044839,-505.7020919,0.00020821,3]
[334671794,1723455044848,-500.0,0.00020821,3]
[334671795,1723455044857,-500.0,0.00020821,3]
[334671796,1723455044868,-1072.78,0.00020821,3]
[334671797,1723455044877,-512.19781729,0.00020821,3]
[334671798,1723455044887,-500.0,0.00020821,3]
[334671799,1723455044897,-500.0,0.00020821,3]
[334671800,1723455044907,-151.0,0.00020821,2]
[334671801,1723455044917,-151.0,0.00020821,2]
[334671802,1723455044927,-151.0,0.00020821,2]
[334671803,1723455044937,-1364.52,0.00020821,3]
[334671804,1723455044946,-151.0,0.00020821,2]
[334671805,1723455044956,-151.0,0.00020821,2]
[334671806,1723455044966,-1073.9,0.00020821,3]
[334671807,1723455044976,-151.0,0.00020821,2]
[334671808,1723455044985,-500.0,0.00020821,3]
[334671809,1723455044995,-151.0,0.00020821,2]
[334671810,1723455045005,-151.0,0.00020821,2]
[334671811,1723455045015,-151.0,0.00020821,2]
[334671812,1723455045024,-151.0,0.00020821,2]
[334671813,1723455045034,-151.0,0.00020821,2]
[334671814,1723455045045,-500.0,0.00020821,3]
[334671815,1723455045055,-151.0,0.00020821,2]
[334671816,1723455045065,-151.0,0.00020821,2]
[334671817,1723455045074,-276.31063,0.00020821,2]
[334671818,1723455045083,-151.0,0.00020821,2]
[334671819,1723455045092,-151.0,0.00020821,2]
[334671820,1723455045101,-151.0,0.00020821,2]
[334671821,1723455045111,-151.0,0.00020821,2]
[334671822,1723455045120,-151.0,0.00020821,2]
[334671823,1723455045129,-151.0,0.00020821,2]
[334671824,1723455045138,-151.0,0.00020821,2]
[334671825,1723455045147,-500.0,0.00020821,3]
[334671826,1723455045157,-151.0,0.00020821,2]
[334671827,1723455045166,-500.0,0.00020821,3]
[334671828,1723455045174,-277.589828,0.00020821,2]
[334671829,1723455045183,-518.52850845,0.00020821,3]
[334671830,1723455045193,-647.09165506,0.00020821,3]
[334671831,1723455045201,-500.0,0.00020821,3]
[334671832,1723455045211,-506.5942804,0.00020821,3]
[334671833,1723455045220,-982.1,0.00020821,3]
[334671834,1723455045229,-500.0,0.00020821,3]
[334671835,1723455045238,-500.0,0.00020821,3]
[334671836,1723455045247,-500.0,0.00020821,3]
[334671837,1723455045257,-500.0,0.00020821,3]
[334671838,1723455045266,-948.88,0.00020821,3]
[334671839,1723455045276,-505.38117355,0.00020821,3]
[334671840,1723455045285,-1184.02,0.00020821,3]
[334671841,1723455045295,-431.89999871,0.00020821,3]
[334671842,1723455045305,-500.0,0.00020821,3]
[334671843,1723455045317,-527.74,0.00020821,3]
[334671844,1723455045327,-500.0,0.00020821,3]
[334671845,1723455045336,-679.91,0.00020821,3]
[334671846,1723455045345,-500.0,0.00020821,3]
[334671847,1723455045354,-500.0,0.00020821,2]
[334671848,1723455045363,-500.0,0.00020821,3]
[334671849,1723455045373,-500.0,0.00020821,3]
[334671850,1723455045383,-306.823278,0.00020821,2]
[334671851,1723455045392,-510.2702451,0.00020821,3]
[334671852,1723455045401,-306.823278,0.00020821,2]
[334671853,1723455045411,-500.0,0.00020821,3]
[334671854,1723455045420,-500.0,0.00020821,3]
[334671855,1723455045430,-306.823278,0.00020821,2]
[334671856,1723455045439,-306.823278,0.00020821,2]
[334671857,1723455045449,-306.823278,0.00020821,2]
[334671858,1723455045458,-306.823278,0.00020821,2]
[334671859,1723455045468,-306.823278,0.00020821,2]
[334671860,1723455045477,-306.823278,0.00020821,2]
[334671861,1723455045487,-500.0,0.00020821,3]
[334671862,1723455045496,-306.823278,0.00020821,2]
[334671863,1723455045506,-306.823278,0.00020821,2]
[334671864,1723455045515,-585.31294183,0.00020821,3]
[334671865,1723455045525,-306.823278,0.00020821,2]
[334671866,1723455045534,-306.823278,0.00020821,2]
[334671867,1723455045545,-306.823278,0.00020821,2]
[334671868,1723455045554,-306.823278,0.00020821,2]
[334671869,1723455045563,-306.823278,0.00020821,2]
[334671870,1723455045573,-504.97414325,0.00020821,3]
[334671871,1723455045586,-306.823278,0.00020821,2]
[334671873,1723455045595,-306.823278,0.00020821,2]
[334671874,1723455045605,-306.823278,0.00020821,2]
[334671875,1723455045614,-306.823278,0.00020821,2]
[334671876,1723455045625,-306.823278,0.00020821,2]
[334671877,1723455045634,-365.82937392,0.00020821,3]
[334671878,1723455045665,-138.23992647,0.00020821,3]
[334671880,1723455045675,-500.0,0.00020821,3]
[334671882,1723455045684,-500.0,0.00020821,3]
[334671883,1723455045693,-505.15595067,0.00020821,3]
[334671885,1723455045702,-500.0,0.00020821,3]
[334671887,1723455045711,-505.55366039,0.00020821,3]
[334671890,1723455045721,-299.041067,0.00020821,2]
[334671891,1723455045730,-504.55785821,0.00020821,3]
[334671892,1723455045739,-677.66902035,0.00020821,3]
[334671901,1723455045856,-117.67097965,0.00020821,3]
[334671902,1723455045866,-589.87533855,0.00020821,3]
[334671903,1723455045875,-506.25617049,0.00020821,3]
[334671904,1723455045885,-500.0,0.00020821,3]
[334671905,1723455045895,-686.78,0.00020821,3]
[334671906,1723455045904,-500.0,0.00020821,3]
[334671907,1723455045914,-500.0,0.00020821,3]
[334671908,1723455045924,-708.18,0.00020821,3]
[334671909,1723455045933,-164.81419024,0.00020821,3]
[334671911,1723455046412,-356.88398731,0.0002082,2]
[334671912,1723455046422,-343.6593187,0.00020821,3]
[334671913,1723455046431,-500.0,0.00020821,3]
[334671914,1723455046441,-500.0,0.00020821,3]
[334671915,1723455046451,-500.0,0.00020821,3]
[334671916,1723455046460,-500.0,0.00020821,3]
[334671917,1723455046470,-500.0,0.00020821,3]
[334671918,1723455046480,-500.0,0.00020821,3]
[334671919,1723455046489,-500.0,0.00020821,3]
[334671920,1723455046499,-500.0,0.00020821,3]
[334671921,1723455046508,-500.0,0.00020821,3]
[334671922,1723455046518,-911.78,0.00020821,3]
[334671923,1723455046527,-500.0,0.00020821,3]
[334671924,1723455046537,-500.0,0.00020821,3]
[334671925,1723455046553,-1689.25,0.00020821,3]
[334671926,1723455046564,-500.0,0.00020821,3]
[334671927,1723455046573,-500.0,0.00020821,3]
[334671928,1723455046588,-500.0,0.00020821,3]
[334671929,1723455046597,-297.51445606,0.00020821,3]
[334671930,1723455046606,-500.0,0.00020821,3]
[334671931,1723455046616,-500.0,0.00020821,3]
[334671932,1723455046626,-286.13883737,0.00020821,3]
[334671933,1723455046635,-1384.19,0.00020821,3]
[334671934,1723455046644,-555.20493065,0.00020821,3]
[334671935,1723455046653,-599.21,0.00020821,3]
[334671936,1723455046663,-514.91161468,0.00020821,3]
[334671937,1723455046673,-2119.11,0.00020821,3]
[334671938,1723455046682,-502.97989153,0.00020821,3]
[334671939,1723455046691,-630.89,0.00020821,3]
[334671940,1723455046701,-661.33,0.00020821,3]
[334671941,1723455046710,-500.0,0.00020821,3]
[334671942,1723455046718,-500.0,0.00020821,3]
[334671943,1723455046728,-500.0,0.00020821,3]
[334671944,1723455046737,-500.0,0.00020821,3]
[334671945,1723455046746,-556.01,0.00020821,3]
[334671946,1723455046755,-500.0,0.00020821,3]
[334671947,1723455046765,-829.73,0.00020821,3]
[334671948,1723455046774,-1000.0,0.00020821,2]
[334671949,1723455046783,-1000.0,0.00020821,2]
[334671950,1723455046796,-1000.0,0.00020821,2]
[334671951,1723455046805,-1000.0,0.00020821,2]
[334671952,1723455046814,-500.0,0.00020821,3]
[334671953,1723455046823,-1000.0,0.00020821,2]
[334671954,1723455046832,-1000.0,0.00020821,2]
[334671955,1723455046842,-354.28432412,0.00020821,2]
[334671968,1723455348529,151.0,0.00027,120]
[334671969,1723455532611,164.025334,0.00014247,2]
[334671970,1723455599112,1495.72315932,0.00014247,2]
[334671981,1723455804140,300.2888593,0.00015954,2]
[334671982,1723455900212,914.19274669,0.00015954,2]
[334671983,1723455918296,8229.81315464,0.00015954,2]
[334671984,1723455937154,-153.0,0.00017167,2]
[334671985,1723455937177,-153.0,0.00017167,2]
[334671986,1723455937199,-153.0,0.00017167,2]
[334671987,1723455937220,-5.84864006,0.00018103,2]
[334671988,1723456011561,195.434379,0.00014247,2]
[334671989,1723456039191,-153.0,0.00017076,2]
[334671990,1723456039220,-153.0,0.00017076,2]
[334671991,1723456039243,-153.0,0.00017077,2]
[334671992,1723456039267,-153.0,0.00017077,2]
[334671993,1723456039288,-158.62408024,0.00018103,2]
[334671994,1723456039311,-1239.5144178,0.00018827,2]
[334671995,1723456039333,-157.928462,0.00018904,2]
[334671996,1723456039354,-157.5869316,0.00018925,2]
[334671997,1723456039377,-301.25996446,0.00019139,2]
[334671998,1723456039399,-163.856953,0.00019178,2]
[334671999,1723456039421,-154.74467129,0.00019256,2]
[334672000,1723456039448,-165.384165,0.00019333,2]
[334672001,1723456039468,-1810.26620909,0.00019547,3]
[334672002,1723456039489,-2140.71420812,0.00019547,2]
[334672003,1723456039510,-188.20114955,0.0002,2]
[334672004,1723456039532,-435.0,0.0002,2]
[334672005,1723456039555,-154.91670417,0.0002,2]
[334672006,1723456039575,-155.05360391,0.0002,2]
[334672007,1723456039597,-151.90208824,0.00020055,2]
[334672008,1723456039620,-300.0,0.00020273,2]
[334672009,1723456039643,-300.0,0.00020273,2]
[334672010,1723456039663,-484.84,0.00020274,2]
[334672011,1723456039683,-265.771,0.00020274,2]
[334672012,1723456039705,-508.0,0.00020274,2]
[334672013,1723456039726,-1384.32767636,0.0002028,2]
[334672014,1723456039748,-248.98557296,0.00020547,7]
[334672015,1723456039770,-1419.5331504,0.00020721,2]
[334672016,1723456039791,-208.59759481,0.00020721,2]
[334672017,1723456039812,-272.43493948,0.00020721,2]
[334672018,1723456039833,-336.53868747,0.00020721,2]
[334672019,1723456039855,-150.112238,0.000208,3]
[334672020,1723456039877,-500.0,0.0002081,2]
[334672021,1723456039900,-421.20243576,0.0002081,2]
[334672022,1723456039927,-16986.7534519,0.00020811,2]
[334672032,1723456146147,-153.0,0.00017052,2]
[334672033,1723456146168,-153.0,0.00017052,2]
[334672034,1723456146189,-153.0,0.00017052,2]
[334672035,1723456146211,-153.0,0.00017052,2]
[334672036,1723456146232,-153.0,0.00017053,2]
[334672037,1723456146252,-153.0,0.00017063,2]
[334672038,1723456146274,-153.0,0.00017063,2]
[334672039,1723456146294,-153.0,0.00017063,2]
[334672040,1723456146314,-153.0,0.00017064,2]
[334672041,1723456146334,-153.0,0.00017064,2]
[334672045,1723456186431,153.0,0.00017042,2]
[334672047,1723456190382,32.52028392,0.00017041,2]
[334672048,1723456190407,120.47971608,0.00017041,2]
[334672049,1723456190613,143.83328703,0.00017041,2]
[334672050,1723456190640,9.16671297,0.00017041,2]
[334672051,1723456211504,273.37336231,9.9e-05,2]
[334672053,1723456227470,273.37336231,9.9e-05,2]
[334672056,1723456232888,-157.928462,0.00018904,2]
[334672058,1723456232899,-208.45077666,0.00019547,2]
[334672060,1723456232909,-5.32576134,0.00019999,2]
[334672076,1723456238512,-294.67423866,0.00019999,2]
[334672077,1723456238523,-165.66670452,0.00019999,2]
[334672078,1723456238533,-7732.96302146,0.0002,2]
[334672079,1723456238543,-154.74467129,0.0002,2]
[334672080,1723456238553,-288.34755929,0.0002028,2]
[334672081,1723456238563,-154.77557542,0.00020683,2]
[334672082,1723456238574,-154.74467129,0.00020683,2]
[334672083,1723456238583,-250.0,0.00020721,2]
[334672084,1723456238593,-4185.77752582,0.00020811,2]
[334672085,1723456238603,-1627.41122373,0.00020811,2]
[334672086,1723456238612,-43290.48929888,0.00020811,2]
[334672087,1723456238665,-19949.15480788,0.00020811,2]
[334672119,1723456243371,-670.78984346,0.00020811,2]
[334672122,1723456243383,-52046.39210078,0.00020811,2]
[334672124,1723456243393,-345.97367636,0.0002082,2]
[334672126,1723456243402,-7956.12831422,0.00020821,11]
[334672128,1723456243412,-151.0,0.00020821,2]
[334672130,1723456243422,-151.0,0.00020821,2]
[334672133,1723456243435,-151.0,0.00020821,2]
[334672136,1723456243445,-505.37416633,0.00020821,3]
[334672139,1723456243455,-505.06170648,0.00020821,3]
[334672142,1723456243465,-500.0,0.00020821,3]
[334672145,1723456243474,-500.0,0.00020821,3]
[334672147,1723456243485,-506.51584812,0.00020821,3]
[334672149,1723456243495,-509.21040246,0.00020821,3]
[334672151,1723456243504,-500.0,0.00020821,3]
[334672153,1723456243515,-500.0,0.00020821,3]
[334672155,1723456243525,-500.0,0.00020821,3]
[334672157,1723456243535,-501.14172296,0.00020821,3]
[334672160,1723456243545,-500.0,0.00020821,3]
[334672163,1723456243554,-500.0,0.00020821,3]
[334672166,1723456243564,-500.0,0.00020821,3]
[334672169,1723456243574,-509.72787759,0.00020821,3]
[334672171,1723456243584,-507.77632743,0.00020821,3]
[334672173,1723456243594,-502.30956681,0.00020821,3]
[334672175,1723456243605,-500.43605839,0.00020821,3]
[334672178,1723456243614,-502.21590744,0.00020821,3]
[334672181,1723456243624,-500.0,0.00020821,3]
[334672184,1723456243634,-500.0,0.00020821,3]
[334672188,1723456243644,-512.50635264,0.00020821,3]
[334672190,1723456243653,-500.0,0.00020821,3]
[334672192,1723456243663,-513.37383625,0.00020821,3]
[334672194,1723456243673,-500.0,0.00020821,3]
[334672196,1723456243685,-505.0683132,0.00020821,3]
[334672198,1723456243694,-503.16228762,0.00020821,3]
[334672199,1723456243703,-500.0,0.00020821,3]
[334672202,1723456243714,-500.0,0.00020821,3]
[334672204,1723456243724,-500.0,0.00020821,3]
[334672206,1723456243734,-153.898367,0.00020821,2]
[334672208,1723456243743,-500.0,0.00020821,3]
[334672210,1723456243752,-151.0,0.00020821,2]
[334672212,1723456243762,-151.0,0.00020821,2]
[334672214,1723456243772,-500.0,0.00020821,3]
[334672216,1723456243782,-151.0,0.00020821,2]
[334672218,1723456243792,-151.0,0.00020821,2]
[334672220,1723456243802,-151.0,0.00020821,2]
[334672229,1723456243812,-151.0,0.00020821,2]
[334672230,1723456243994,-151.0,0.00020821,2]
[334672231,1723456244004,-151.0,0.00020821,2]
[334672232,1723456244015,-151.0,0.00020821,2]
[334672233,1723456244024,-500.0,0.00020821,3]
[334672234,1723456244034,-151.0,0.00020821,2]
[334672235,1723456244045,-151.0,0.00020821,2]
[334672236,1723456244055,-151.0,0.00020821,2]
[334672237,1723456244065,-500.0,0.00020821,3]
[334672238,1723456244074,-156.807315,0.00020821,2]
[334672239,1723456244083,-500.0,0.00020821,3]
[334672240,1723456244092,-500.0,0.00020821,3]
[334672241,1723456244102,-500.0,0.00020821,3]
[334672242,1723456244112,-500.0,0.00020821,3]
[334672243,1723456244122,-500.0,0.00020821,3]
[334672244,1723456244132,-500.0,0.00020821,3]
[334672245,1723456244142,-500.0,0.00020821,3]
[334672246,1723456244152,-518.52850845,0.00020821,3]
[334672247,1723456244162,-647.09165506,0.00020821,3]
[334672248,1723456244172,-500.0,0.00020821,3]
[334672249,1723456244182,-1364.52,0.00020821,3]
[334672250,1723456244191,-502.06461699,0.00020821,3]
[334672251,1723456244201,-500.0,0.00020821,3]
[334672252,1723456244210,-503.16277501,0.00020821,3]
[334672253,1723456244221,-505.38117355,0.00020821,3]
[334672254,1723456244231,-431.89999871,0.00020821,3]
[334672255,1723456244241,-679.91,0.00020821,3]
[334672256,1723456244251,-500.0,0.00020821,3]
[334672257,1723456244260,-510.2702451,0.00020821,3]
[334672258,1723456244270,-585.31294183,0.00020821,3]
[334672259,1723456244280,-151.0,0.00020821,2]